bitfinex-derivatives/quotes_ETHF0:USTF0_20250103
["timestamp","ask_amount","ask_price","bid_price","bid_amount"]
[1735865702778,0.2901,3450.3,3449.9,0.29013]
[1735865702981,0.29012,3450.1,3449.9,0.29013]
[1735865704587,0.29012,3450.1,3449.4,4.3388]
[1735865704588,0.2901,3450.3,3449.8,0.29014]
[1735865704790,0.29012,3450.1,3449.8,0.29014]
[1735865705184,0.29012,3450.1,3449.9,0.29013]
[1735865706186,44.20555185,3450.5,3449.8,3.2078]
[1735865706487,0.29012,3450.1,3449.9,0.29013]
[1735865707991,43.09693268,3450.5,3449.8,3.49794]
[1735865707992,0.29013,3450.0,3449.8,3.49794]
[1735865708188,0.29013,3450.0,3449.8,3.2078]
[1735865708387,0.29013,3450.0,3449.9,0.29013]
[1735865708787,0.29012,3450.1,3449.8,3.2078]
[1735865708987,0.29012,3450.1,3450.0,0.29013]
[1735865709895,0.29012,3450.1,3449.9,0.29013]
[1735865710091,46.50248453,3450.5,3449.8,3.2078]
[1735865710391,43.09693268,3450.5,3449.8,3.49794]
[1735865710686,43.09693268,3450.5,3449.8,3.2078]
[1735865711091,0.29013,3449.9,3449.7,0.29015]
[1735865711321,0.29014,3449.8,3449.6,0.29015]
[1735865712586,2.29693268,3450.2,3449.7,0.29015]
[1735865712987,0.29015,3449.8,3449.6,0.29016]
[1735865713689,0.29015,3449.8,3449.4,3.2078]
[1735865714090,2.29693268,3450.2,3449.4,3.2078]
[1735865714291,0.29014,3449.9,3449.7,0.29014]
[1735865714588,3.2078,3450.3,3449.4,3.2078]
[1735865714787,3.2078,3450.3,3449.3,3.43693268]
[1735865714788,0.29009,3450.4,3450.0,0.29012]
[1735865714998,40.8,3450.5,3449.8,3.2078]
[1735865714999,0.2901,3450.3,3450.1,0.29012]
[1735865715193,0.2901,3450.4,3450.2,0.2901]
[1735865715590,0.2901,3450.4,3449.8,3.2078]
[1735865715988,0.2901,3450.4,3450.3,0.2901]
[1735865716601,0.2901,3450.4,3450.2,0.2901]
[1735865718198,0.29009,3450.4,3450.2,0.2901]
[1735865720193,0.2901,3450.3,3450.2,0.2901]
[1735865721694,0.2901,3450.3,3450.1,0.29011]
[1735865721897,0.29013,3450.0,3449.9,3.2078]
[1735865722290,1.29986619,3450.0,3449.9,3.2078]
[1735865722997,0.29014,3449.8,3449.7,0.29015]
[1735865723794,0.29014,3449.9,3449.7,0.29015]
[1735865724049,0.29014,3449.9,3449.4,1.00973619]
[1735865724200,0.29014,3449.9,3449.8,0.29014]
[1735865724598,0.29013,3450.0,3449.8,0.29014]
[1735865728504,5.50494055,3450.3,3449.8,0.29014]
[1735865728808,0.29013,3450.0,3449.8,0.29014]
[1735865729494,5.50494055,3450.3,3449.6,3.2078]
[1735865729697,0.29012,3450.1,3450.0,0.29012]
[1735865731304,43.09714055,3450.5,3450.0,0.29012]
[1735865731505,0.29012,3450.2,3450.0,0.29012]
[1735865732101,0.29012,3450.2,3450.1,0.29012]
[1735865732604,41.09009,3450.5,3449.6,3.2078]
[1735865732803,3.40555185,3450.6,3450.0,3.2078]
[1735865733005,3.40555185,3450.6,3450.5,0.29008]
[1735865733307,44.20555185,3450.6,3450.5,0.29008]
[1735865733900,40.8,3450.6,3450.5,0.29008]
[1735865734304,3.40555185,3450.8,3450.7,0.29007]
[1735865735006,0.29007,3450.7,3450.5,0.29008]
[1735865735306,2.29714055,3450.6,3450.0,3.2078]
[1735865735501,0.29012,3450.1,3450.0,3.2078]
[1735865735905,41.09012,3450.1,3450.0,3.2078]
[1735865740107,41.52549815,3450.1,3450.0,3.2078]
[1735865741511,46.06623395,3450.1,3450.0,3.2078]
[1735865743307,46.06623395,3450.1,3449.9,0.29013]
[1735865743811,45.77611395,3450.1,3450.0,0.29013]
[1735865744128,40.8,3450.1,3450.0,0.29013]
[1735865745319,41.23534866,3450.1,3450.0,0.29013]
[1735865746010,41.52546866,3450.1,3449.9,0.29013]
[1735865746215,41.52546866,3450.1,3450.0,0.29013]
[1735865746419,41.23534866,3450.1,3450.0,0.29013]
[1735865746619,45.35611428,3450.1,3450.0,0.29013]
[1735865747920,41.2353499,3450.1,3450.0,0.29013]
[1735865749119,41.2353499,3450.1,3450.0,3.49793]
[1735865750223,41.2353499,3450.1,3450.0,0.29013]
[1735865762335,0.4353499,3450.1,3450.0,1.29948775]
[1735865763035,4.55611428,3450.2,3450.0,1.00935775]
[1735865763237,4.55611428,3450.2,3450.1,3.49792]
[1735865763429,0.56561428,3450.2,3450.1,3.49792]
[1735865763630,5.68626374,3450.7,3450.1,3.2078]
[1735865763835,46.48626374,3450.7,3450.6,0.29007]
[1735865764432,5.68626374,3450.7,3450.6,0.29007]
[1735865765147,2.27857426,3450.7,3450.6,0.29007]
[1735865767038,2.27857426,3450.7,3450.3,6.84589407]
[1735865767242,2.56864426,3450.7,3450.5,0.29008]
[1735865767638,0.29007,3450.7,3450.5,0.29008]
[1735865768336,0.29007,3450.7,3450.2,6.84589407]
[1735865768544,3.41786139,3450.8,3450.2,6.84589407]
[1735865768744,0.29008,3450.6,3450.2,6.84589407]
[1735865768936,0.29008,3450.6,3450.5,0.29008]
[1735865769337,2.56682837,3450.6,3450.5,0.29008]
[1735865769537,2.56682837,3450.6,3450.4,0.29009]
[1735865769737,2.56682837,3450.6,3450.1,6.84589407]
[1735865769738,2.27674837,3450.6,3450.1,6.84589407]
[1735865770540,4.57245668,3450.6,3450.1,6.84589407]
[1735865770756,2.56684837,3450.4,3450.2,0.2901]
[1735865770945,2.56684837,3450.4,3450.3,0.2901]
[1735865770946,2.27674837,3450.4,3450.3,0.2901]
[1735865772240,3.41786139,3450.5,3449.9,3.2078]
[1735865772440,3.41786139,3450.5,3450.4,0.29009]
[1735865775561,3.70794139,3450.5,3450.4,0.29009]
[1735865775957,3.41786139,3450.5,3450.4,0.29009]
[1735865777452,0.29008,3450.6,3450.4,0.29009]
[1735865777747,5.68626374,3450.8,3449.9,3.2078]
[1735865777949,0.29007,3450.7,3450.5,0.29008]
[1735865778157,5.68626374,3450.8,3449.9,3.2078]
[1735865778353,5.68626374,3450.8,3450.7,0.29007]
[1735865778651,5.68626374,3450.8,3450.5,0.29008]
[1735865778652,0.29007,3450.7,3450.5,0.29008]
[1735865779254,0.29007,3450.6,3450.4,0.29009]
[1735865779648,0.29009,3450.5,3450.3,0.2901]
[1735865780246,0.29011,3450.2,3450.0,7.13601407]
[1735865781053,40.8,3450.1,3450.0,6.84589407]
[1735865781254,40.8,3450.1,3449.9,3.49793]
[1735865781255,43.36687566,3450.1,3449.9,3.49793]
[1735865781452,43.36687566,3450.1,3450.0,0.29013]
[1735865781656,43.36687566,3450.1,3449.9,3.2078]
[1735865781854,43.07675566,3450.1,3450.0,0.29013]
[1735865782155,43.36687566,3450.1,3450.0,0.29013]
[1735865782551,41.09012,3450.1,3450.0,0.29013]
[1735865783755,40.8,3450.1,3450.0,0.29013]
[1735865784357,41.80962357,3450.1,3450.0,0.29013]
[1735865785354,45.22486293,3450.1,3450.0,0.29013]
[1735865787849,41.80962357,3450.1,3450.0,0.29013]
[1735865788357,3.41523936,3450.2,3449.7,4.21742357]
[1735865788657,3.41523936,3450.2,3450.1,0.29012]
[1735865789659,3.85056451,3450.3,3450.2,0.29011]
[1735865790653,3.41523936,3450.3,3450.2,0.29011]
[1735865791453,2.27752568,3450.3,3450.2,0.29011]
[1735865793959,2.27752568,3450.6,3450.2,4.42108478]
[1735865794153,2.27752568,3450.6,3450.5,0.29008]
[1735865794957,3.28714925,3450.6,3450.5,0.29008]
[1735865796461,2.27752568,3450.6,3450.5,4.50750357]
[1735865797461,2.27752568,3450.6,3450.5,3.49788]
[1735865798162,2.27752568,3450.8,3450.5,3.2078]
[1735865798354,2.27752568,3450.8,3450.7,0.29007]
[1735865799765,3.28714925,3450.9,3450.8,0.29006]
[1735865801070,44.08714925,3450.9,3450.8,0.29006]
[1735865801463,43.07752568,3450.9,3450.8,0.29006]
[1735865802770,40.8,3450.9,3450.8,0.29006]
[1735865808161,2.27752568,3451.1,3450.6,1.00962357]
[1735865808366,2.27752568,3451.1,3451.0,0.29004]
[1735865809265,43.07752568,3451.2,3451.1,0.29003]
[1735865815781,40.8,3451.2,3451.1,0.29003]
[1735865817377,2.27752568,3451.3,3451.2,0.29002]
[1735865818179,40.8,3451.4,3451.3,0.29002]
[1735865818575,2.27752568,3451.6,3451.2,5.35142357]
[1735865818875,2.27752568,3451.6,3451.5,1.29962357]
[1735865819078,43.07752568,3451.6,3451.5,1.29962357]
[1735865819779,40.8,3451.6,3451.5,1.29962357]
[1735865820974,40.8,3451.6,3451.5,0.29]
[1735865821174,40.8,3451.6,3451.2,4.3418]
[1735865821383,1.00962357,3451.5,3451.4,0.29001]
[1735865821878,0.28999,3451.6,3451.4,0.29001]
[1735865822073,40.8,3451.5,3451.4,0.29001]
[1735865822382,2.27752568,3451.9,3451.8,0.28997]
[1735865822879,3.41523936,3452.0,3451.8,0.28997]
[1735865822880,3.41523936,3452.0,3451.9,0.28997]
[1735865823080,3.41523936,3452.0,3451.9,1.42397]
[1735865824178,40.8,3452.3,3451.9,1.134]
[1735865824483,40.8,3452.3,3452.2,0.28994]
[1735865826180,41.80962357,3452.3,3452.2,0.28994]
[1735865828582,40.8,3452.3,3452.2,0.28994]
[1735865841086,40.8,3452.3,3452.2,3.49774]
[1735865841990,40.8,3452.3,3452.2,0.28994]
[1735865849690,2.27342978,3452.4,3452.3,0.28993]
[1735865850190,2.27342978,3452.4,3452.3,3.49773]
[1735865850999,43.07342978,3452.5,3452.4,0.28992]
[1735865853496,44.08160742,3452.5,3452.4,0.28992]
[1735865854195,44.08160742,3452.5,3452.3,3.2078]
[1735865854493,41.80817764,3452.5,3452.3,3.2078]
[1735865854693,42.09809764,3452.5,3452.3,3.49773]
[1735865854894,41.80817764,3452.5,3452.3,3.2078]
[1735865855099,41.80817764,3452.5,3452.4,0.28992]
[1735865855696,45.223417,3452.5,3452.4,0.28992]
[1735865857097,45.65849403,3452.5,3452.4,0.28992]
[1735865860105,46.7988721,3452.5,3452.4,0.28992]
[1735865862302,45.79069446,3452.5,3452.4,0.28992]
[1735865864211,47.0887921,3452.5,3452.4,0.28992]
[1735865864413,60.15791007,3452.5,3451.9,3.2078]
[1735865864707,0.28996,3452.0,3451.9,3.2078]
[1735865866404,11.81330924,3452.0,3451.9,3.2078]
[1735865866608,11.52334924,3452.0,3451.9,3.2078]
[1735865866904,11.52334924,3452.0,3451.9,3.49777]
[1735865867408,11.52334924,3452.0,3451.9,0.28997]
[1735865868002,4.69979711,3452.0,3451.9,0.28997]
[1735865868910,0.28998,3451.8,3451.7,0.28998]
[1735865869113,1.29815764,3451.8,3451.7,0.28998]
[1735865870406,1.29815764,3451.8,3451.6,0.28999]
[1735865871105,1.73323467,3451.8,3451.6,0.28999]
[1735865871605,1.73323467,3451.8,3451.5,7.7623658]
[1735865871815,1.73323467,3451.8,3451.5,8.0523558]
[1735865872006,0.28998,3451.7,3451.5,8.0523558]
[1735865872513,4.14460092,3451.7,3451.5,3.49779]
[1735865873607,3.85462092,3451.7,3451.5,3.49779]
[1735865874010,3.41954389,3451.7,3451.5,3.49779]
[1735865874910,3.41954389,3451.7,3451.6,0.28999]
[1735865878015,2.27858467,3451.7,3451.6,0.28999]
[1735865879317,3.57675231,3451.7,3451.5,3.4978]
[1735865879515,3.28676231,3451.7,3451.5,3.2078]
[1735865879918,3.28676231,3451.7,3451.6,0.28999]
[1735865880118,44.08676231,3451.7,3451.6,0.28999]
[1735865880321,44.37675231,3451.7,3451.5,3.2078]
[1735865880619,44.08676231,3451.7,3451.6,0.28999]
[1735865881914,45.22772153,3451.7,3451.6,0.28999]
[1735865882320,45.51770153,3451.7,3451.5,3.4978]
[1735865882617,45.22772153,3451.7,3451.6,0.28999]
[1735865882817,4.42772153,3451.7,3451.6,0.28999]
[1735865883723,3.41954389,3451.7,3451.6,0.28999]
[1735865884415,3.41954389,3451.7,3451.5,4.21597764]
[1735865884416,3.41954389,3451.8,3451.7,0.28998]
[1735865885720,2.27794677,3451.9,3451.8,0.28997]
[1735865886514,3.28612441,3451.9,3451.8,0.28997]
[1735865886913,3.28612441,3451.9,3451.6,0.28999]
[1735865886914,0.28998,3451.8,3451.6,0.28999]
[1735865887113,3.57609441,3451.9,3451.7,0.28998]
[1735865887926,0.28999,3451.7,3451.5,8.0523558]
[1735865888122,4.42772153,3451.9,3451.5,3.2078]
[1735865888322,1.00817764,3451.7,3451.6,0.28999]
[1735865889624,4.86289032,3451.7,3451.6,0.28999]
[1735865890121,3.85471268,3451.7,3451.6,0.28999]
[1735865890826,3.41954389,3451.7,3451.6,0.28999]
[1735865892532,3.41954389,3451.7,3451.3,2.13917764]
[1735865892823,3.41954389,3451.7,3451.6,0.28999]
[1735865893017,2.27736339,3451.6,3451.3,2.13917764]
[1735865893217,3.57554103,3451.6,3451.4,0.29]
[1735865893418,3.28554103,3451.6,3451.4,0.29]
[1735865893923,3.28554103,3451.6,3451.5,0.29]
[1735865894525,1.29816764,3451.6,3451.5,0.29]
[1735865894918,1.00817764,3451.6,3451.5,0.29]
[1735865896023,4.42377483,3451.6,3451.5,0.29]
[1735865896423,3.41559719,3451.6,3451.5,0.29]
[1735865897120,3.85076915,3451.6,3451.5,0.29]
[1735865899722,0.43517196,3451.6,3451.5,0.29]
[1735865901227,4.84982997,3451.7,3451.6,0.28999]
[1735865901819,0.28999,3451.6,3451.5,0.28999]
[1735865903727,0.43517196,3451.6,3451.3,2.13917764]
[1735865903923,1.00817764,3451.4,3451.3,1.42101]
[1735865904430,0.29,3451.5,3451.3,1.131]
[1735865904625,1.00817764,3451.4,3451.2,3.2078]
[1735865904823,0.29002,3451.3,3451.2,3.2078]
[1735865905221,41.09002,3451.3,3451.2,3.2078]
[1735865906632,46.08504193,3451.3,3451.2,3.49782]
[1735865906928,46.08504193,3451.3,3451.2,3.2078]
[1735865908131,41.52519196,3451.3,3451.2,3.2078]
[1735865908632,41.52519196,3451.3,3451.1,0.29003]
[1735865909538,3.85242827,3451.2,3451.1,0.29003]
[1735865913535,3.41725631,3451.2,3451.1,0.29003]
[1735865916346,3.41725631,3451.2,3451.1,1.29820764]
[1735865917536,2.2782435,3451.3,3451.2,0.29002]
[1735865919243,3.70726631,3451.4,3451.2,0.29002]
[1735865919436,3.41725631,3451.4,3451.3,0.29002]
[1735865920172,0.29002,3451.3,3451.0,4.8445958]
[1735865920352,3.70727631,3451.3,3451.1,0.29003]
[1735865920747,40.8,3451.2,3451.1,0.29003]
[1735865921347,43.07836465,3451.2,3451.1,0.29003]
[1735865922739,2.27836465,3451.2,3451.1,0.29003]
[1735865927049,44.21725631,3451.3,3451.2,0.29002]
[1735865928349,44.65246062,3451.3,3451.2,0.29002]
[1735865930151,41.23520431,3451.3,3451.2,0.29002]
[1735865934356,41.23520431,3451.3,3451.0,4.5545658]
[1735865934647,45.79505428,3451.3,3451.1,0.29003]
[1735865935551,46.08507428,3451.3,3451.1,0.29003]
[1735865935949,45.79505428,3451.3,3451.1,0.29003]
[1735865936355,6.00323192,3451.2,3450.9,7.7623658]
[1735865936654,0.29004,3451.1,3450.9,8.0524158]
[1735865937959,4.99505428,3451.0,3450.9,3.49785]
[1735865938149,6.29327192,3451.0,3450.9,3.2078]
[1735865939059,6.29327192,3451.0,3450.9,3.49785]
[1735865939854,6.29327192,3451.0,3450.9,0.29005]
[1735865940055,11.38982037,3451.0,3450.9,0.29005]
[1735865940260,10.38164273,3451.0,3450.9,0.29005]
[1735865941559,0.29004,3451.1,3450.8,3.2078]
[1735865941854,10.38164273,3451.2,3451.1,0.29003]
[1735865942660,4.55892345,3451.3,3451.2,0.29002]
[1735865943867,0.29003,3451.1,3451.0,4.5545658]
[1735865944158,1.29820764,3451.1,3451.0,4.5545658]
[1735865944580,42.09820764,3451.1,3451.0,4.5545658]
[1735865945067,0.29005,3450.9,3450.8,3.2078]
[1735865945264,1.29822764,3450.9,3450.8,3.2078]
[1735865945857,0.29007,3450.7,3450.5,4.8446458]
[1735865946052,0.29007,3450.7,3450.6,0.29008]
[1735865947457,0.72527431,3450.7,3450.6,0.29008]
[1735865947658,0.43520431,3450.7,3450.6,0.29008]
[1735865948565,0.43520431,3450.7,3450.4,5.56274344]
[1735865948768,3.41776671,3450.7,3450.4,5.56274344]
[1735865949064,3.41776671,3450.7,3450.6,0.29007]
[1735865949961,3.41776671,3450.7,3450.5,0.29008]
[1735865950164,3.85297102,3450.7,3450.5,0.29008]
[1735865950565,4.14304102,3450.7,3450.5,0.29008]
[1735865950763,3.85297102,3450.7,3450.4,5.56274344]
[1735865950963,3.85297102,3450.7,3450.5,0.29008]
[1735865951469,3.85297102,3450.7,3450.6,0.29008]
[1735865951668,5.28277858,3450.8,3450.6,0.29008]
[1735865952464,4.99271858,3450.8,3450.4,1.00817764]
[1735865952665,3.85189081,3450.7,3450.6,0.29007]
[1735865954201,3.4166865,3450.7,3450.6,0.29007]
[1735865957267,3.4166865,3450.7,3450.4,1.00817764]
[1735865957268,3.85196815,3450.8,3450.7,0.29007]
[1735865957667,4.14202815,3450.8,3450.6,0.29007]
[1735865957862,3.85196815,3450.8,3450.4,1.00817764]
[1735865958476,3.85196815,3450.8,3450.3,7.7623658]
[1735865958677,4.14202815,3450.8,3450.6,0.29007]
[1735865959677,1.00817764,3450.9,3450.6,0.29007]
[1735865959678,3.4166865,3450.7,3450.6,0.29007]
[1735865961879,3.7067565,3450.7,3450.5,0.29008]
[1735865962074,3.4166865,3450.7,3450.6,0.29008]
[1735865962271,3.7067465,3450.8,3450.6,0.29008]
[1735865963578,3.85198424,3450.7,3450.6,0.29008]
[1735865966777,3.4166865,3450.7,3450.6,0.29008]
[1735865968481,3.85198424,3450.8,3450.7,0.29007]
[1735865969372,4.14204424,3450.8,3450.7,0.29007]
[1735865969577,3.85198424,3450.8,3450.7,0.29007]
[1735865970787,0.43529774,3450.8,3450.7,0.29007]
[1735865972879,4.55751427,3450.9,3450.8,0.29006]
[1735865974296,4.99281201,3450.9,3450.8,0.29006]
[1735865977599,5.28286201,3450.9,3450.8,0.29006]
[1735865978401,0.72534774,3450.9,3450.8,0.29006]
[1735865978901,0.43529774,3450.9,3450.6,3.2078]
[1735865979101,0.29006,3450.8,3450.7,0.29006]
[1735865979903,4.84787909,3450.8,3450.7,0.29006]
[1735865981201,0.72535774,3450.8,3450.7,0.29006]
[1735865982100,0.43529774,3450.8,3450.7,0.29006]
[1735865982296,0.29006,3450.8,3450.7,0.29006]
[1735865982603,0.29007,3450.7,3450.6,0.29007]
[1735865982805,0.29006,3450.8,3450.6,0.29007]
[1735865983506,0.29006,3450.8,3450.7,0.29007]
[1735865985310,4.97332794,3450.8,3450.7,0.29007]
[1735865987010,0.29007,3450.7,3450.6,0.29007]
[1735865987497,4.97332794,3450.8,3450.6,0.29007]
[1735865988405,4.99626991,3450.7,3450.6,0.29007]
[1735865988608,5.28633991,3450.7,3450.6,0.29007]
[1735865989601,0.43527763,3450.7,3450.6,0.29007]
[1735865989998,0.72534763,3450.7,3450.6,0.29007]
[1735865990711,0.43527763,3450.7,3450.6,0.29007]
[1735865991037,0.43527763,3450.7,3450.6,4.5545658]
[1735865991038,0.29007,3450.7,3450.6,4.5545658]
[1735865991705,5.98987247,3450.8,3450.6,4.8446458]
[1735865991907,0.29007,3450.7,3450.6,4.8446458]
[1735865992312,0.29007,3450.7,3450.6,4.5545658]
[1735865992514,10.67643265,3450.7,3450.6,4.5545658]
[1735865994010,4.97662018,3450.7,3450.6,4.8446458]
[1735866000213,4.97662018,3450.7,3450.6,4.5545658]
[1735866000634,4.97662018,3450.7,3450.6,4.8446458]
[1735866001712,4.97662018,3450.7,3450.6,4.5545658]
[1735866001917,4.97662018,3450.7,3450.6,4.8446458]
[1735866002520,4.97662018,3450.7,3450.6,4.5545658]
[1735866002739,10.67643265,3450.7,3450.6,4.8446458]
[1735866005820,10.38636265,3450.7,3450.6,4.8446458]
[1735866006125,4.68655018,3450.7,3450.6,5.85282344]
[1735866006823,4.68655018,3450.7,3450.6,4.8446458]
[1735866007126,4.68655018,3450.7,3450.6,5.85282344]
[1735866007322,2.28183851,3450.8,3450.7,0.29007]
[1735866008324,2.28183851,3450.8,3450.7,1.29824764]
[1735866009221,2.28183851,3450.9,3450.8,0.29006]
[1735866010024,2.57188851,3450.9,3450.7,13.86384286]
[1735866010217,0.29006,3450.8,3450.7,13.57378286]
[1735866010621,0.29008,3450.6,3450.5,11.35758076]
[1735866010821,0.29008,3450.6,3449.6,13.53641206]
[1735866010822,42.81635528,3450.6,3449.6,13.53641206]
[1735866011019,0.29016,3449.6,3449.5,20.3046181]
[1735866011722,41.09016,3449.6,3449.5,20.3046181]
[1735866012027,40.8,3449.6,3449.5,21.60296574]
[1735866012322,3.2078,3449.7,3449.6,0.29016]
[1735866012725,3.2078,3450.2,3449.5,2.32000004]
[1735866012929,40.8,3450.1,3449.4,5.50498345]
[1735866013114,40.8,3450.1,3450.0,0.29013]
[1735866013426,3.2078,3450.2,3450.1,0.29012]
[1735866013628,2.29718345,3450.9,3450.1,0.29012]
[1735866013629,5.6901974,3450.3,3450.2,0.29011]
[1735866014119,5.6901974,3450.3,3450.2,2.61011004]
[1735866014928,4.55208674,3450.5,3450.4,0.29009]
[1735866015226,2.48915645,3450.8,3450.7,0.29007]
[1735866015490,6.82638319,3452.0,3451.9,0.28997]
[1735866015725,6.82638319,3452.0,3451.9,3.71815345]
[1735866016717,10.32403319,3453.3,3452.7,0.2899]
[1735866016918,10.03418319,3453.3,3452.6,1.131]
[1735866017119,10.03418319,3453.3,3452.8,0.28988]
[1735866017522,12.33136664,3453.3,3452.7,1.131]
[1735866017924,2.27511791,3452.8,3452.7,1.131]
[1735866018420,2.27511791,3452.8,3452.5,4.85150394]
[1735866018421,2.27511791,3452.8,3452.5,5.69259394]
[1735866019022,2.27511791,3452.8,3452.5,4.56159394]
[1735866019224,0.2899,3452.7,3452.5,4.56159394]
[1735866019419,2.56500791,3452.8,3452.4,3.2078]
[1735866019624,40.8,3452.6,3452.4,3.2078]
[1735866020531,0.28992,3452.5,3452.0,5.69259394]
[1735866020828,0.28992,3452.5,3452.0,1.131]
[1735866021034,44.0078,3452.6,3452.0,1.131]
[1735866021035,0.28993,3452.4,3452.0,1.131]
[1735866021436,44.0078,3452.6,3451.8,6.85877739]
[1735866021638,0.28993,3452.3,3451.8,4.56159394]
[1735866021836,3.2078,3451.9,3451.4,5.69259394]
[1735866022044,3.2078,3451.9,3451.5,0.29]
[1735866022664,2.58716345,3451.8,3451.4,4.56159394]
[1735866022838,3.49777,3451.9,3451.4,4.85160394]
[1735866023233,5.77288791,3451.9,3451.4,0.29001]
[1735866023741,2.27511791,3451.9,3451.1,2.29718345]
[1735866024037,2.27511791,3451.9,3451.8,0.28997]
[1735866025134,2.27511791,3451.9,3451.7,0.28998]
[1735866025333,2.27511791,3451.9,3451.6,0.28999]
[1735866025542,2.27511791,3451.9,3451.5,0.29]
[1735866026035,5.48291791,3451.9,3451.1,2.29718345]
[1735866026339,0.28998,3451.7,3451.2,0.29002]
[1735866026541,0.28998,3451.7,3451.1,1.131]
[1735866026738,40.8,3451.6,3451.0,4.56159394]
[1735866026940,3.2078,3451.5,3451.0,4.56159394]
[1735866027441,0.29002,3451.3,3450.6,1.131]
[1735866027635,0.29001,3451.4,3450.9,0.29005]
[1735866028160,3.2078,3451.5,3450.9,0.29005]
[1735866028341,0.29001,3451.4,3450.9,0.29005]
[1735866029433,0.29002,3451.3,3450.9,0.29005]
[1735866029839,0.29001,3451.4,3450.9,0.29004]
[1735866030838,0.29001,3451.4,3451.0,0.29004]
[1735866031645,3.2078,3451.5,3450.9,0.29004]
[1735866031835,0.29001,3451.4,3450.5,6.63598345]
[1735866032035,0.29001,3451.4,3451.0,0.29004]
[1735866033343,0.29002,3451.3,3451.0,0.29004]
[1735866034640,5.48291791,3451.5,3450.5,6.63598345]
[1735866034641,3.49784,3451.1,3450.7,0.29006]
[1735866035038,3.2078,3451.1,3450.5,3.2078]
[1735866035443,3.2078,3451.1,3450.5,3.49788]
[1735866035444,0.29006,3450.8,3450.5,3.49788]
[1735866036148,0.29006,3450.8,3450.5,0.29008]
[1735866036443,3.49787,3450.7,3450.4,0.29009]
[1735866036746,40.8,3450.6,3450.4,0.29009]
[1735866036942,40.8,3450.6,3450.5,0.29008]
[1735866037441,3.2078,3450.7,3450.6,0.29008]
[1735866038247,41.09005,3451.0,3450.6,0.29008]
[1735866038844,41.09005,3451.0,3450.7,0.29007]
[1735866039546,0.29005,3450.9,3450.6,0.29007]
[1735866040240,40.8,3451.0,3450.1,2.29718345]
[1735866040452,0.29007,3450.7,3450.4,0.29009]
[1735866040652,40.8,3451.0,3450.4,0.29009]
[1735866040842,0.29006,3450.8,3450.5,0.29008]
[1735866041245,40.8,3451.0,3450.1,2.29718345]
[1735866041447,0.29006,3450.8,3450.5,0.29008]
[1735866042145,0.29007,3450.7,3450.4,0.29009]
[1735866042749,0.29007,3450.7,3450.5,0.29008]
[1735866042936,0.29007,3450.8,3450.1,2.29718345]
[1735866043137,3.49787,3450.7,3450.4,0.29008]
[1735866043336,3.49787,3450.7,3450.4,0.29009]
[1735866044549,3.49787,3450.7,3450.1,2.29718345]
[1735866044753,3.49787,3450.7,3450.5,0.29008]
[1735866044943,3.2078,3450.7,3450.6,0.29008]
[1735866046746,3.2078,3450.7,3450.5,0.29008]
[1735866046943,3.49787,3450.7,3450.5,0.29008]
[1735866047447,3.2078,3450.7,3450.1,2.29718345]
[1735866047647,0.29008,3450.6,3450.4,0.29009]
[1735866047951,3.2078,3450.7,3450.0,1.135]
[1735866048247,0.29008,3450.6,3450.4,0.29008]
[1735866048446,3.2078,3450.7,3450.0,1.135]
[1735866048447,3.49787,3450.7,3450.3,0.2901]
[1735866048645,3.49787,3450.7,3450.4,0.29008]
[1735866049448,3.49787,3450.7,3450.5,0.29008]
[1735866050146,0.29011,3450.3,3450.1,0.29011]
[1735866050846,0.29011,3450.2,3450.0,1.42512]
[1735866051046,3.2078,3450.7,3450.0,1.135]
[1735866051240,0.29011,3450.3,3450.1,0.29012]
[1735866051480,0.2901,3450.4,3450.2,0.29011]
[1735866051740,0.29008,3450.6,3450.0,1.135]
[1735866051944,0.29008,3450.6,3450.0,3.43218345]
[1735866052661,3.2078,3450.7,3450.6,0.29008]
[1735866053853,5.48291791,3451.1,3451.0,0.29004]
[1735866054447,46.28291791,3451.1,3451.0,0.29004]
[1735866054752,44.0078,3451.1,3451.0,0.29004]
[1735866057858,40.8,3451.1,3451.0,0.29004]
[1735866070361,2.27511791,3451.2,3451.1,0.29003]
[1735866071367,2.27511791,3451.3,3451.2,0.29002]
[1735866072559,5.48291791,3451.5,3451.1,4.56159394]
[1735866072766,5.48291791,3451.5,3451.4,0.29001]
[1735866073071,46.28291791,3451.5,3451.4,0.29001]
[1735866073869,5.48291791,3451.5,3451.4,0.29001]
[1735866074265,7.05566354,3451.5,3451.4,0.29001]
[1735866076772,6.62047687,3451.5,3451.4,0.29001]
[1735866078074,6.62047687,3451.5,3451.0,2.29718345]
[1735866078075,0.29003,3451.2,3451.0,0.29004]
[1735866079177,2.27605185,3451.4,3451.0,0.29004]
[1735866079569,0.29003,3451.2,3451.0,0.29004]
[1735866079769,0.29003,3451.2,3450.9,5.69259394]
[1735866079972,0.29004,3451.1,3451.0,0.29004]
[1735866080167,2.27605185,3451.4,3450.9,4.56159394]
[1735866080466,0.29004,3451.0,3450.9,4.56159394]
[1735866080866,0.29004,3451.0,3450.9,4.85164394]
[1735866081075,0.29004,3451.0,3450.9,4.56159394]
[1735866081475,2.27605185,3451.3,3450.9,4.56159394]
[1735866081774,0.29004,3451.0,3450.9,4.56159394]
[1735866081972,2.56609185,3451.0,3450.9,0.29005]
[1735866082483,2.56609185,3451.0,3450.7,4.3388]
[1735866082484,2.27605185,3451.0,3450.7,4.3388]
[1735866083173,0.29006,3450.8,3450.7,3.2078]
[1735866085267,3.70272687,3450.9,3450.7,3.2078]
[1735866085472,3.70272687,3450.9,3450.7,3.49786]
[1735866085870,2.27655175,3450.8,3450.7,3.49787]
[1735866087175,2.27655175,3451.1,3451.0,0.29004]
[1735866089978,2.27655175,3451.1,3451.0,1.42104]
[1735866090170,2.27655175,3451.2,3451.1,0.29003]
[1735866091282,2.27655175,3451.2,3451.1,3.49783]
[1735866091695,2.27655175,3451.4,3451.3,0.29002]
[1735866094383,2.27655175,3451.5,3451.4,0.29001]
[1735866095577,2.56656175,3451.5,3451.3,0.29001]